Cogmind - Beta 11 @@@ ROGUE MODE // 2022.03.24 @ 13:06:23 Player: lsend Result: Heading to fleet! Performance ------------- Evolutions (9) 4500 Regions Visited (22) 4400 Robots Destroyed (30) 150 Value Destroyed (961) 961 Prototype IDs (63) 1260 Alien Tech Used (3) 600 Bonus (12620) 12620 TOTAL SCORE: 24491 Bonus ------- Pacifist 634 High Alert Combat Kills 48 Follower Combat Kills 3425 Network Hubs Disabled 200 Aligned with FarCom 300 Met Data Miner 300 Built Enhanced Grunts 300 A7 Reached Mainframe 300 Met R17 at Cetus 500 Found Hidden Lab 3000 Used Core Reset Matrix 3000 Win 3000 Friendly Fire -2387 Cogmind --------- Core Integrity 1548/1600 Matter 295/300 Energy 145/150 System Corruption 0% Temperature Cool (5) Movement Flying (24) Location To Fleet Rendezvous Parts ------- > --- POWER (3) -------- Micro Fission Core > --- PROPULSION (8) --- Cooled Cesium-ion Thruster Improved Diametric Drive Improved Diametric Drive Improved Diametric Drive Impulse Thruster Array Impulse Thruster Array > --- UTILITY (13) ----- Small Storage Unit Advanced Signal Interpreter Experimental Propulsion Shielding Centrium Medium Armor Plating Heavy Regenerative Plating Advanced Hacking Suite Deep Network Scanner > --- WEAPON (2) ------- Centrium Greatsword > --- INVENTORY (8) ---- Quantum Reactor Light Quantum Reactor Light Quantum Reactor Triangulator Energy Mantle Transdimensional Reconstructor Peak State ------------ > --- POWER ------------ Micro Antimatter Reactor Light Quantum Reactor > --- PROPULSION ------- Cooled Cesium-ion Thruster Improved Diametric Drive Improved Diametric Drive Improved Diametric Drive Impulse Thruster Array Impulse Thruster Array > --- UTILITY ---------- Small Storage Unit Advanced Gravity Neutralizer Triangulator Advanced Signal Interpreter Experimental Propulsion Shielding Light Regenerative Plating Heavy Regenerative Plating Advanced Hacking Suite Advanced Hacking Suite Deep Network Scanner Trap Reconfigurator > --- WEAPON ----------- Centrium Greatsword > --- INVENTORY -------- Micro Fission Core Quantum Reactor Light Quantum Reactor Centrium Medium Armor Plating Energy Mantle Transdimensional Reconstructor Core Reset Matrix [Rating: 182] Favorites ----------- Power Light Quantum Reactor Engine Light Angular Momentum Engine Power Core Neutrino Core Reactor Light Quantum Reactor Propulsion VTOL Module Treads Light Treads Flight Unit VTOL Module Utility Improved Signal Interpreter Device Trap Reconfigurator Storage Small Storage Unit Processor Improved Signal Interpreter Hackware Advanced Hacking Suite Protection Light Regenerative Plating Weapon Mace Energy Gun Backup Laser I Ballistic Gun KE Penetrator Ballistic Cannon Enhanced Gauss Cannon Launcher Mini Grenade Launcher Impact Weapon Mace Slashing Weapon Chainsword Piercing Weapon Enhanced Force Lance Build | -11 -10 -10 -10 -9 -8 -7 -7 -7 -7 -6 -6 -5 -5 -5 -5 -5 -4 -4 -4 -3 -2 -1 ------- Run | Scr Mat Min Exi Min Mat Fac Low Low Dat Pro Fac Fac Ext Cet Arc Hub Fac Arm Lab Res Res Acc Slots Evolved 18 | . . . . . 4 2 . . . . 2 2 . . . . 2 . . 2 2 2 Power 2 | . . . . . . . . . . . . 1 . . . . . . . . . 1 Propulsion 6 | . . . . . 2 1 . . . . 1 . . . . . . . . 1 1 . Utility 10 | . . . . . 2 1 . . . . 1 1 . . . . 2 . . 1 1 1 Weapon . | . . . . . . . . . . . . . . . . . . . . . . . Parts Attached 98 | 2 2 . 1 1 3 9 . 1 . 1 8 1 9 12 4 3 9 9 6 7 6 4 Power 16 | . . . . . . . . . . . 1 . 3 2 3 . 1 3 1 1 . 1 Engine 5 | . . . . . . . . . . . . . 2 1 1 . . 1 . . . . Core 4 | . . . . . . . . . . . 1 . 1 1 . . . . . . . 1 Reactor 7 | . . . . . . . . . . . . . . . 2 . 1 2 1 1 . . Propulsion 28 | 2 . . . . 1 3 . . . 1 4 . 1 4 . 1 3 . 1 3 4 . Treads 4 | 2 . . . . 1 1 . . . . . . . . . . . . . . . . Leg . | . . . . . . . . . . . . . . . . . . . . . . . Wheel . | . . . . . . . . . . . . . . . . . . . . . . . Hover . | . . . . . . . . . . . . . . . . . . . . . . . Flight 24 | . . . . . . 2 . . . 1 4 . 1 4 . 1 3 . 1 3 4 . Utility 42 | . 1 . 1 1 1 5 . 1 . . 3 1 2 6 1 . 4 5 4 2 2 2 Device 17 | . 1 . 1 1 1 1 . . . . 1 . 2 3 1 . 2 1 . . 2 . Storage 1 | . . . . . . . . . . . . . . . . . 1 . . . . . Processor 3 | . . . . . . 2 . . . . . . . . . . . . . 1 . . Hackware 5 | . . . . . . 1 . . . . 1 . . 1 . . . . 1 1 . . Protection 16 | . . . . . . 1 . 1 . . 1 1 . 2 . . 1 4 3 . . 2 Artifact . | . . . . . . . . . . . . . . . . . . . . . . . Weapon 12 | . 1 . . . 1 1 . . . . . . 3 . . 2 1 1 . 1 . 1 Energy Gun . | . . . . . . . . . . . . . . . . . . . . . . . Energy Cannon . | . . . . . . . . . . . . . . . . . . . . . . . Ballistic Gun 1 | . . . . . . . . . . . . . 1 . . . . . . . . . Ballistic Cannon 2 | . . . . . . . . . . . . . 1 . . 1 . . . . . . Launcher 1 | . . . . . . 1 . . . . . . . . . . . . . . . . Special Weapon . | . . . . . . . . . . . . . . . . . . . . . . . Impact Weapon 2 | . 1 . . . 1 . . . . . . . . . . . . . . . . . Slashing Weapon 5 | . . . . . . . . . . . . . 1 . . 1 1 . . 1 . 1 Piercing Weapon 1 | . . . . . . . . . . . . . . . . . . 1 . . . . Special Melee Weapon . | . . . . . . . . . . . . . . . . . . . . . . . Unidentified Prototypes 8 | . . . . . . 1 . . . . . . . 2 . . 1 . 2 1 1 . Parts Lost 24 | . . 1 . . 2 1 . 1 . . . . 5 3 1 2 1 2 . . . 5 Power 5 | . . . . . . . . 1 . . . . . . 1 . 1 1 . . . 1 Propulsion 9 | . . . . . 1 1 . . . . . . 4 1 . 2 . . . . . . Utility 10 | . . 1 . . 1 . . . . . . . 1 2 . . . 1 . . . 4 Weapon . | . . . . . . . . . . . . . . . . . . . . . . . Highest Loss Streak 3 | . . 1 . . 2 1 . 1 . . . . 3 2 1 2 1 1 . . . 3 To Critical Strikes . | . . . . . . . . . . . . . . . . . . . . . . . Average Slot Usage (%) 75 | . 53 51 48 57 52 76 92 72 69 75 84 82 80 64 91 91 79 79 69 76 80 71 Engine 2 | . . . . . . 4 7 1 . . . . 1 5 6 11 5 2 . . . . Reactor 1 | . . . . . . . . . . . . . . . . . 3 3 5 6 8 6 Treads 3 | . 28 28 28 28 20 15 15 1 . . . . . . . . . . . . . . Flight 20 | . . . . . . 10 15 15 15 22 33 35 26 14 35 32 23 21 21 22 25 23 Device 9 | . 14 8 6 14 23 13 7 7 7 7 6 5 5 7 11 11 13 10 10 9 12 9 Storage 1 | . . . . . . . . . . . . . . . . . 4 5 5 4 4 3 Processor 6 | . . . . . . 8 15 15 15 15 13 11 9 5 5 5 5 5 5 4 4 3 Hackware 7 | . . . . . . 3 7 7 7 7 10 11 11 5 5 5 5 5 6 12 12 10 Protection 10 | . . . . . . 4 7 7 7 7 6 5 11 16 17 17 11 19 10 9 8 8 Launcher 1 | . . . . . . 2 7 7 7 7 6 5 1 . . . . . . . . . Impact Weapon 2 | . 10 14 14 14 9 7 7 7 7 7 6 5 1 . . . . . . . . . Slashing Weapon 2 | . . . . . . . . . . . . . 1 5 5 5 5 3 . 2 4 2 Naked Turns . | . . . . . . . . . . . . . . . . . . . . . . . Heaviest Build 63 | . 3 3 3 3 3 8 7 7 7 7 7 11 36 27 40 31 47 54 54 59 60 63 Greatest Support 75 | 3 3 3 3 3 3 12 12 12 9 9 11 11 45 29 40 33 49 55 56 60 61 75 Greatest Overweight (x) 3 | . . . . . . . . . . . . . 1 . 1 . . . . . . 3 Average Overweight (x) . | . . . . . . . . . . . . . . . . . . . . . . . Largest Inventory Capacity 8 | 5 5 5 5 5 5 5 5 5 5 5 5 5 5 5 5 5 8 8 8 8 8 8 Average Capacity 5 | 5 5 5 5 5 5 5 5 5 5 5 5 5 5 5 5 5 7 8 8 8 8 8 Most Carried 8 | 1 1 1 1 1 1 5 5 5 5 5 5 5 5 5 5 5 8 8 8 8 8 7 Average Carried 5 | . 1 1 1 1 1 3 5 5 5 5 4 5 4 4 5 4 7 7 5 7 7 6 Final Capacity 8 | 5 5 5 5 5 5 5 5 5 5 5 5 5 5 5 5 5 8 8 8 8 8 8 Final Carried 8 | 1 1 1 1 1 1 5 5 5 5 5 5 5 5 5 5 5 8 7 8 8 6 6 Class Distribution -------------------- 22% | Hacker-Sprinter 21% | Hacker-Mutant 19% | Mutant 16% | Scavenger-Sprinter 9% | Commander-Mutant 9% | Sprinter Dominant Class ---------------- Mutant | -10/Materials Mutant | -10/Mines Mutant | -10/Exiles Mutant | -9/Mines Mutant | -8/Materials Mutant | -7/Factory Mutant | -7/Lower Caves Sprinter | -7/Lower Caves Sprinter | -7/Data Miner Sprinter | -6/Proximity Caves Hacker-Mutant | -6/Factory Hacker-Mutant | -5/Factory Hacker-Mutant | -5/Extension Commander-Mutant | -5/Cetus Scavenger-Sprinter | -5/Archives Scavenger-Sprinter | -5/Hub_04(d) Scavenger-Sprinter | -4/Factory Scavenger-Sprinter | -4/Armory Sprinter | -4/Lab Hacker-Sprinter | -3/Research Hacker-Sprinter | -2/Research Hacker-Sprinter | -1/Access Resources | -11 -10 -10 -10 -9 -8 -7 -7 -7 -7 -6 -6 -5 -5 -5 -5 -5 -4 -4 -4 -3 -2 -1 ----------- Run | Scr Mat Min Exi Min Mat Fac Low Low Dat Pro Fac Fac Ext Cet Arc Hub Fac Arm Lab Res Res Acc Matter Collected 1516 | 219 21 . . 10 . . 195 10 . 30 60 . 359 115 40 . 86 . . 286 20 65 Remotely . | . . . . . . . . . . . . . . . . . . . . . . . Salvage Created 1707 | . . . . . . 126 148 . . 39 75 . 364 84 30 276 86 . . 237 85 157 Parts 69 | . . . . . . 10 8 . . 4 1 . 11 5 3 12 2 . . 8 1 4 Haulers Intercepted 9 | . . . . . . . . . . . 1 . 3 . . 1 1 . . 2 1 . Recyclers Shooed 1 | . . . . . . 1 . . . . . . . . . . . . . . . . Parts Field Recycled . | . . . . . . . . . . . . . . . . . . . . . . . Retrieved Matter . | . . . . . . . . . . . . . . . . . . . . . . . Parts Self-Destructed 11 | . . . . . . . 4 . . 7 . . . . . . . . . . . . Prevented . | . . . . . . . . . . . . . . . . . . . . . . . Kills | -11 -10 -10 -10 -9 -8 -7 -7 -7 -7 -6 -6 -5 -5 -5 -5 -5 -4 -4 -4 -3 -2 -1 ------- Run | Scr Mat Min Exi Min Mat Fac Low Low Dat Pro Fac Fac Ext Cet Arc Hub Fac Arm Lab Res Res Acc Combat Hostiles Destroyed 14 | . . . . . . 4 3 . . 3 . . 2 . . 2 . . . . . . Cannons 2 | . . . . . . . . . . . . . 2 . . . . . . . . . AOE 11 | . . . . . . 4 3 . . 3 . . . . . 1 . . . . . . Classes Destroyed 10 | . . . . . . 3 . . . . 1 . 2 . 1 2 . . . 1 . . Worker 1 | . . . . . . . . . . . . . . . . 1 . . . . . . Builder 1 | . . . . . . 1 . . . . . . . . . . . . . . . . Hauler 9 | . . . . . . . . . . . 1 . 3 . . 1 1 . . 2 1 . Recycler 2 | . . . . . . 1 . . . . . . . . . . . . . . . 1 Operator 1 | . . . . . . . . . . . . . . . 1 . . . . . . . Watcher 1 | . . . . . . . . . . . . . . . . . . . . 1 . . Swarmer 10 | . . . . . . 4 3 . . 3 . . . . . . . . . . . . Grunt 1 | . . . . . . . . . . . . . 1 . . . . . . . . . Sentry 2 | . . . . . . . . . . . . . . . . 2 . . . . . . Programmer 1 | . . . . . . . . . . . . . 1 . . . . . . . . . Packrat 2 | . . . . . . . 2 . . . . . . . . . . . . . . . Best Kill Streak 6 | . . . . . . 6 3 . . 3 1 . 2 . 1 3 1 . . 2 1 1 Combat Bots Only 4 | . . . . . . 4 3 . . 3 . . 1 . . 2 . . . . . . Max Kills in Single Turn 2 | . . . . . . 2 1 . . 2 1 . 1 1 1 2 1 . . 1 1 1 Gunslinging . | . . . . . . . . . . . . . . . . . . . . . . . Exploded 2 | . . . . . . 2 1 . . 2 . . . . . 1 . . . . . . Melee . | . . . . . . . . . . . . . . . . . . . . . . . Uniques/NPCs Destroyed 1 | . . . . . . . . . . . . . . 1 . . . . . . . . A7 (-5/Cetus) Combat | -11 -10 -10 -10 -9 -8 -7 -7 -7 -7 -6 -6 -5 -5 -5 -5 -5 -4 -4 -4 -3 -2 -1 -------- Run | Scr Mat Min Exi Min Mat Fac Low Low Dat Pro Fac Fac Ext Cet Arc Hub Fac Arm Lab Res Res Acc Damage Taken 6075 | . 37 136 . . 299 366 42 43 . 15 . . 863 354 108 374 391 910 . 150 362 1625 Core 763 | . . 31 . . 27 19 12 . . . . . 139 31 27 100 5 222 . 25 73 52 Absorbed by Shields 136 | . . . . . . . . . . . . . 20 12 . . 25 79 . . . . Redirected to Shielding 144 | . . . . . . . . . . . . . . . . . 19 16 . . . 109 Regen/Repaired (Parts) 859 | . . . . . . . . . . . . . 189 181 30 26 103 66 65 51 14 134 Core Remaining (%) 91 | 100 . . . 87 95 . . . . 95 100 . . . . 70 . . 80 98 94 96 Volleys Fired 35 | . . . . . . 5 3 . . 2 . . 24 . . 1 . . . . . . Largest 2 | . . . . . . 1 1 . . 1 . . 2 . . 1 . . . . . . Hottest 90 | . . . . . . 30 30 . . 30 . . 90 . . 57 . . . . . . Shots Fired 59 | . . . . . . 5 3 . . 2 . . 48 . . 1 . . . . . . Gun 24 | . . . . . . . . . . . . . 24 . . . . . . . . . Cannon 25 | . . . . . . . . . . . . . 24 . . 1 . . . . . . Launcher 10 | . . . . . . 5 3 . . 2 . . . . . . . . . . . . Special . | . . . . . . . . . . . . . . . . . . . . . . . Kinetic 49 | . . . . . . . . . . . . . 48 . . 1 . . . . . . Thermal . | . . . . . . . . . . . . . . . . . . . . . . . Explosive 10 | . . . . . . 5 3 . . 2 . . . . . . . . . . . . Electromagnetic . | . . . . . . . . . . . . . . . . . . . . . . . Robot Hit Streak 6 | . . . . . . 1 3 . . 1 . . 6 . . . . . . . . . Robot Miss Streak 4 | . . . . . . 2 . . . 1 . . 4 . . . . . . . . . Penetration Max 1 | . . . . . . . . . . . . . 1 . . . . . . . . . Secondary Targets . | . . . . . . . . . . . . . . . . . . . . . . . Shots Hit Robots 81 | . . . . . 1 1 4 1 . 1 3 . 35 13 1 5 6 1 . 4 4 1 Core Hits 43 | . . . . . . 9 4 . . 4 . . 12 3 1 5 1 . . 3 1 . Critical Kills . | . . . . . . . . . . . . . . . . . . . . . . . Critical Parts Destroyed 1 | . . . . . . . 1 . . . . . . . . . . . . . . . Critical Strikes 7 | . . . . . . . 1 . . . . . 4 . . . . . . . 2 . Blast 2 | . . . . . . . . . . . . . 2 . . . . . . . . . Smash 1 | . . . . . . . 1 . . . . . . . . . . . . . . . Sever 4 | . . . . . . . . . . . . . 2 . . . . . . . 2 . Melee Attacks 138 | . . . . . 2 . 2 3 . . 6 1 12 17 1 11 16 15 3 9 20 20 Impact 17 | . . . . . 2 . 2 3 . . 6 1 3 . . . . . . . . . Slashing 106 | . . . . . . . . . . . . . 9 17 1 11 16 5 . 7 20 20 Piercing 15 | . . . . . . . . . . . . . . . . . . 10 3 2 . . Sneak Attacks 26 | . . . . . 1 . 1 . . . 1 . 2 12 1 1 1 1 . 3 1 1 Combat Hostiles . | . . . . . . . . . . . . . . . . . . . . . . . Follow-up Attacks . | . . . . . . . . . . . . . . . . . . . . . . . Damage Inflicted 5355 | . . . . . 66 432 339 34 . 209 143 . 1450 674 105 543 277 39 . 504 401 139 Guns 499 | . . . . . . . . . . . . . 499 . . . . . . . . . Cannons 458 | . . . . . . . . . . . . . 458 . . . . . . . . . Explosions 1154 | . . . . . . 432 255 . . 209 . . . . . 258 . . . . . . Melee 3227 | . . . . . 66 . 84 34 . . 143 . 476 674 105 285 277 39 . 504 401 139 Ramming 17 | . . . . . . . . . . . . . 17 . . . . . . . . . Kinetic 957 | . . . . . . . . . . . . . 957 . . . . . . . . . Thermal . | . . . . . . . . . . . . . . . . . . . . . . . Explosive 896 | . . . . . . 432 255 . . 209 . . . . . . . . . . . . Electromagnetic 258 | . . . . . . . . . . . . . . . . 258 . . . . . . Impact 384 | . . . . . 66 . 84 34 . . 143 . 57 . . . . . . . . . Slashing 2734 | . . . . . . . . . . . . . 419 674 105 285 277 . . 434 401 139 Piercing 109 | . . . . . . . . . . . . . . . . . . 39 . 70 . . Highest Corruption 10 | . . . . . 2 . . . . . . . . . . 1 7 10 10 1 . 5 Average Corruption 5 | . . . . . 2 . . . . . . . . . . 1 4 8 10 1 . 2 Corruption Purged . | . . . . . . . . . . . . . . . . . . . . . . . Corruption Blocked . | . . . . . . . . . . . . . . . . . . . . . . . Effects 28 | . . . . . 2 . . . . . . . . . . 1 3 15 5 . . 2 Message Errors 6 | . . . . . 1 . . . . . . . . . . . 2 3 . . . . Matter Fused 6 | . . . . . . . . . . . . . . . . 1 . 3 2 . . . Heat Flow Errors 5 | . . . . . . . . . . . . . . . . . . 3 1 . . 1 Energy Discharges 3 | . . . . . . . . . . . . . . . . . . 1 1 . . 1 Data Loss (minor) 3 | . . . . . . . . . . . . . . . . . 1 1 1 . . . Alerts 1 | . . . . . 1 . . . . . . . . . . . . . . . . . Misdirections 4 | . . . . . . . . . . . . . . . . . . 4 . . . . Overload Shots . | . . . . . . . . . . . . . . . . . . . . . . . Overflow Damage 353 | . . . . . 36 10 67 . . . 33 . 22 68 . . 13 . . 6 19 79 Projectiles . | . . . . . . . . . . . . . . . . . . . . . . . Explosions 10 | . . . . . . 10 . . . . . . . . . . . . . . . . Melee 343 | . . . . . 36 . 67 . . . 33 . 22 68 . . 13 . . 6 19 79 Knockbacks 2 | . . . . . 1 . . . . . . . 1 . . . . . . . . . Impact 2 | . . . . . 1 . . . . . . . 1 . . . . . . . . . Kinetic . | . . . . . . . . . . . . . . . . . . . . . . . Secondary . | . . . . . . . . . . . . . . . . . . . . . . . Self-Inflicted Damage 135 | . . . . . . 18 . . . . . . 8 . . 109 . . . . . . Shots 2 | . . . . . . 1 . . . . . . . . . 1 . . . . . . Rammed 1 | . . . . . . . . . . . . . 1 . . . . . . . . . Targets Rammed 1 | . . . . . . . . . . . . . 1 . . . . . . . . . Kicked . | . . . . . . . . . . . . . . . . . . . . . . . Crushed . | . . . . . . . . . . . . . . . . . . . . . . . Highest Temperature 527 | . . . . . . . 1 . . . . . 527 2 11 33 19 241 173 7 8 230 Average Temperature 114 | . . . . . . . 1 . . . . . 173 1 2 9 5 79 84 4 3 117 Received Heat Transfer 845 | . . 33 . . 189 . . 27 . . . . 197 45 21 63 36 159 . 12 18 45 Effects 6 | . . . . . . . . . . . . . 6 . . . . . . . . . Shutdowns 2 | . . . . . . . . . . . . . 2 . . . . . . . . . Energy Bleed 1 | . . . . . . . . . . . . . 1 . . . . . . . . . Short Circuit 1 | . . . . . . . . . . . . . 1 . . . . . . . . . Damage (minor) 2 | . . . . . . . . . . . . . 2 . . . . . . . . . Siege Activations . | . . . . . . . . . . . . . . . . . . . . . . . Robots Corrupted 1 | . . . . . . . . . . . . . . . . 1 . . . . . . Combat Hostiles 1 | . . . . . . . . . . . . . . . . 1 . . . . . . Parts Fried 3 | . . . . . . . 2 . . . . . . . . 1 . . . . . . Impact Corruptions 5 | . . . . . 1 . 2 . . . 2 . . . . . . . . . . . Robots Melted . | . . . . . . . . . . . . . . . . . . . . . . . Combat Hostiles . | . . . . . . . . . . . . . . . . . . . . . . . Parts Melted . | . . . . . . . . . . . . . . . . . . . . . . . Heat Transferred . | . . . . . . . . . . . . . . . . . . . . . . . Parts Sabotaged 4 | . . . . . . . . . . . . . . . . . . 4 . . . . Parts Stolen 1 | . . . . . . . . 1 . . . . . . . . . . . . . . Parts Stripped . | . . . . . . . . . . . . . . . . . . . . . . . Power Chain Reactions . | . . . . . . . . . . . . . . . . . . . . . . . Missiles Intercepted . | . . . . . . . . . . . . . . . . . . . . . . . Alert | -11 -10 -10 -10 -9 -8 -7 -7 -7 -7 -6 -6 -5 -5 -5 -5 -5 -4 -4 -4 -3 -2 -1 ------- Run | Scr Mat Min Exi Min Mat Fac Low Low Dat Pro Fac Fac Ext Cet Arc Hub Fac Arm Lab Res Res Acc Peak Influence 1680 | . . 125 . . 149 311 . . . . 209 134 483 1680 806 964 643 375 . 175 306 492 Initial 612 | . . . . . . 58 . . . . 91 102 65 270 612 282 471 315 . . 98 183 Average 334 | . . 52 . . 75 137 . . . . 123 122 277 767 755 559 524 257 . 72 114 307 Maximum Alert Level 5 | . . . . . . 1 . . . . 1 . 2 5 3 3 2 1 . . 1 2 Low Security (%) 38 | 100 100 100 . 100 100 74 . . . . 81 100 17 . . . . 26 . 100 86 14 Level 1 35 | . . . . . . 25 . . . . 18 . 79 24 . 36 . 73 . . 13 63 Level 2 14 | . . . . . . . . . . . . . 3 22 23 41 100 . . . . 22 Level 3 8 | . . . . . . . . . . . . . . 36 76 22 . . . . . . Level 4 1 | . . . . . . . . . . . . . . 8 . . . . . . . . Level 5 1 | . . . . . . . . . . . . . . 8 . . . . . . . . High Security . | . . . . . . . . . . . . . . . . . . . . . . . Max Security . | . . . . . . . . . . . . . . . . . . . . . . . Squads Dispatched 37 | . . . . . 6 4 . . . . 3 2 2 4 . 3 2 3 . 3 2 3 Investigation 17 | . . . . . 2 1 . . . . 2 2 1 4 . 1 1 1 . . 1 1 Extermination 4 | . . . . . . . . . . . . . . . . 1 . . . 1 1 1 Reinforcement 14 | . . . . . 2 3 . . . . 1 . 1 . . 1 1 2 . 2 . 1 Assault . | . . . . . . . . . . . . . . . . . . . . . . . Garrison 2 | . . . . . 2 . . . . . . . . . . . . . . . . . Intercept . | . . . . . . . . . . . . . . . . . . . . . . . Searches Triggered 1 | . . . . . . . . . . . . . . . . . . . . . . 1 Data Miner Redirects 7 | . . . . . . . . . . . 1 1 1 2 . . . 1 . . 1 . Construction Impeded 2 | . . . . . . 1 . . . . . . 1 . . . . . . . . . Haulers Reinforced 1 | . . . . . . . . . . . . . . . . . 1 . . . . . Active Scanning Responses . | . . . . . . . . . . . . . . . . . . . . . . . Cargo Convoy Interrupts . | . . . . . . . . . . . . . . . . . . . . . . . Stealth | -11 -10 -10 -10 -9 -8 -7 -7 -7 -7 -6 -6 -5 -5 -5 -5 -5 -4 -4 -4 -3 -2 -1 --------- Run | Scr Mat Min Exi Min Mat Fac Low Low Dat Pro Fac Fac Ext Cet Arc Hub Fac Arm Lab Res Res Acc Distress Signals 18 | . . . . . 1 1 . . . . . . 5 2 . 2 . 4 . . . 3 Communications Jammed . | . . . . . . . . . . . . . . . . . . . . . . . Distress Signals . | . . . . . . . . . . . . . . . . . . . . . . . Times Spotted 278 | . 2 11 . . 17 15 3 8 . 3 7 1 32 26 4 13 16 33 . 11 21 55 Peak Tracking Total 21 | . 2 7 . . 7 8 2 4 . 2 6 2 5 5 2 4 11 21 . 5 15 20 Tactical Retreats 48 | . . 2 . . 5 2 . 2 . . 2 1 5 1 . 1 3 5 . 2 3 14 Traps | -11 -10 -10 -10 -9 -8 -7 -7 -7 -7 -6 -6 -5 -5 -5 -5 -5 -4 -4 -4 -3 -2 -1 ------- Run | Scr Mat Min Exi Min Mat Fac Low Low Dat Pro Fac Fac Ext Cet Arc Hub Fac Arm Lab Res Res Acc Traps Triggered 12 | . 1 . . . 2 1 . . . . . 1 2 . . . 2 3 . . . . Indirectly . | . . . . . . . . . . . . . . . . . . . . . . . Trap Hack Attempts . | . . . . . . . . . . . . . . . . . . . . . . . Triggered . | . . . . . . . . . . . . . . . . . . . . . . . Disarmed . | . . . . . . . . . . . . . . . . . . . . . . . Reprogrammed . | . . . . . . . . . . . . . . . . . . . . . . . Reused . | . . . . . . . . . . . . . . . . . . . . . . . Traps Reconfigurated 39 | . . . . . 1 . . . . . . . . . . 12 3 4 . 11 7 1 Traps Extracted . | . . . . . . . . . . . . . . . . . . . . . . . Installed . | . . . . . . . . . . . . . . . . . . . . . . . Triggered . | . . . . . . . . . . . . . . . . . . . . . . . Machines | -11 -10 -10 -10 -9 -8 -7 -7 -7 -7 -6 -6 -5 -5 -5 -5 -5 -4 -4 -4 -3 -2 -1 ---------- Run | Scr Mat Min Exi Min Mat Fac Low Low Dat Pro Fac Fac Ext Cet Arc Hub Fac Arm Lab Res Res Acc Machines Disabled 25 | . . . . . . . . . . . 1 . 2 2 1 13 . 5 1 . . . Max in Single Turn 10 | . . . . . . . . . . . . . . . . 10 . 1 1 . . . Network Hub 1 | . . . . . . . . . . . . . . . . 1 . . . . . . Machines Sabotaged . | . . . . . . . . . . . . . . . . . . . . . . . Garrisons Compromised . | . . . . . . . . . . . . . . . . . . . . . . . Overloaded Fab Kills . | . . . . . . . . . . . . . . . . . . . . . . . Hacking | -11 -10 -10 -10 -9 -8 -7 -7 -7 -7 -6 -6 -5 -5 -5 -5 -5 -4 -4 -4 -3 -2 -1 --------- Run | Scr Mat Min Exi Min Mat Fac Low Low Dat Pro Fac Fac Ext Cet Arc Hub Fac Arm Lab Res Res Acc Machines Accessed 68 | . 1 . 2 . 4 6 . . 4 . 5 2 2 4 1 7 5 6 . 4 7 8 Terminals 47 | . . . . . 3 3 . . . . 4 1 2 4 . 7 3 5 . 4 5 6 Fabricators 4 | . . . . . . . . . . . . 1 . . . . 1 . . . 1 1 Repair Stations 4 | . . . . . . 3 . . . . . . . . . . . . . . . 1 Recycling Units 5 | . 1 . . . 1 . . . . . 1 . . . . . 1 1 . . . . Scanalyzers 1 | . . . . . . . . . . . . . . . . . . . . . 1 . Garrison Access . | . . . . . . . . . . . . . . . . . . . . . . . Total Hacks 228 | . 2 . 2 . 13 11 . . 28 . 13 10 3 10 14 17 11 26 . 13 31 24 Successful 154 | . 1 . 2 . 7 5 . . 28 . 8 5 3 6 14 8 5 14 . 8 24 16 Failed 74 | . 1 . . . 6 6 . . . . 5 5 . 4 . 9 6 12 . 5 7 8 Catastrophic 11 | . . . . . . 1 . . . . 2 1 . . . 1 3 1 . . . 2 Database Lockouts . | . . . . . . . . . . . . . . . . . . . . . . . Manual 56 | . . . 1 . 4 . . . . . 2 6 1 8 . 2 1 10 . . 17 4 Terminals 152 | . . . . . 9 7 . . . . 10 8 3 10 . 17 7 24 . 13 25 19 Fabricators 9 | . . . . . . . . . . . . 2 . . . . 2 . . . 2 3 Repair Stations 6 | . . . . . . 4 . . . . . . . . . . . . . . . 2 Recycling Units 13 | . 2 . . . 4 . . . . . 3 . . . . . 2 2 . . . . Scanalyzers 4 | . . . . . . . . . . . . . . . . . . . . . 4 . Garrison Access . | . . . . . . . . . . . . . . . . . . . . . . . Terminal Hacks 129 | . . . 2 . 4 4 . . 28 . 6 3 2 6 14 8 3 12 . 8 18 11 Record 32 | . . . 1 . . . . . 11 . . . . 5 14 . . . . . 1 . Part Schematic 16 | . . . . . . . . . 11 . . . . . . . . . . . 5 . Robot Schematic 3 | . . . . . . . . . 3 . . . . . . . . . . . . . Robot Analysis 2 | . . . . . . . . . . . 1 . . . . . . . . 1 . . Prototype ID Bank 10 | . . . . . 1 . . . 3 . 1 . 1 . . 1 1 . . 1 1 . Open Door 2 | . . . . . . . . . . . . . . 1 . . . . . . . 1 Level Access Points 5 | . . . . . 1 . . . . . 1 . . . . . . . . 1 1 1 Branch Access Points 4 | . . . . . 1 1 . . . . . . . . . . 1 . . . . 1 Emergency Access Points 8 | . . . . . . . . . . . . . . . . 3 . 3 . . 1 1 Fabricator Index 1 | . . . . . . . . . . . . . . . . . . . . . 1 . Scanalyzer Index 1 | . . . . . . . . . . . . . . . . . . . . . 1 . Unreport Threat 13 | . . . . . 1 1 . . . . 2 . . . . . . 4 . 1 2 2 Locate Traps 13 | . . . . . . . . . . . . 1 1 . . 2 . 2 . 3 2 2 Dispatch Records 1 | . . . . . . 1 . . . . . . . . . . . . . . . . Recall Investigation 3 | . . . . . . . . . . . . 2 . . . . 1 . . . . . Registered Prototypes 1 | . . . . . . 1 . . . . . . . . . . . . . . . . Zone Layout 13 | . . . . . . . . . . . 1 . . . . 2 . 3 . 1 3 3 EX-Prototype ID Bank 1 | . . . 1 . . . . . . . . . . . . . . . . . . . Fabricator Hacks 8 | . . . . . . . . . . . . 2 . . . . 2 . . . 2 2 Load Schematic 4 | . . . . . . . . . . . . 1 . . . . 1 . . . 1 1 Build 4 | . . . . . . . . . . . . 1 . . . . 1 . . . 1 1 Repair Station Hacks 3 | . . . . . . 1 . . . . . . . . . . . . . . . 2 Scan Component 1 | . . . . . . . . . . . . . . . . . . . . . . 1 Repair 1 | . . . . . . . . . . . . . . . . . . . . . . 1 Refit 1 | . . . . . . 1 . . . . . . . . . . . . . . . . Recycling Unit Hacks 4 | . 1 . . . 1 . . . . . 1 . . . . . . 1 . . . . Retrieve Components 4 | . 1 . . . 1 . . . . . 1 . . . . . . 1 . . . . Scanalyzer 4 | . . . . . . . . . . . . . . . . . . . . . 4 . Insert Component 4 | . . . . . . . . . . . . . . . . . . . . . 4 . Garrison Access Hacks . | . . . . . . . . . . . . . . . . . . . . . . . Unauthorized Hacks 6 | . . . . . 2 . . . . . 1 . 1 . . . . 1 . . . 1 Terminals 4 | . . . . . 1 . . . . . . . 1 . . . . 1 . . . 1 Track 1 | . . . . . . . . . . . . . . . . . . 1 . . . . Assimilate 2 | . . . . . 1 . . . . . . . . . . . . . . . . 1 Disrupt 1 | . . . . . . . . . . . . . 1 . . . . . . . . . Fabricators . | . . . . . . . . . . . . . . . . . . . . . . . Repair Stations . | . . . . . . . . . . . . . . . . . . . . . . . Recycling Units 2 | . . . . . 1 . . . . . 1 . . . . . . . . . . . Tunnel 2 | . . . . . 1 . . . . . 1 . . . . . . . . . . . Scanalyzers . | . . . . . . . . . . . . . . . . . . . . . . . Garrison Access . | . . . . . . . . . . . . . . . . . . . . . . . Data Cores Recovered . | . . . . . . . . . . . . . . . . . . . . . . . Used . | . . . . . . . . . . . . . . . . . . . . . . . Hacking Detections 47 | . 1 . . . 2 4 . . . . 2 2 1 4 . 6 4 4 . 4 5 8 Full Trace Events 12 | . . . . . 1 . . . . . 1 1 . 4 . 1 1 1 . . 1 1 Feedback Events . | . . . . . . . . . . . . . . . . . . . . . . . Feedback Blocked . | . . . . . . . . . . . . . . . . . . . . . . . Robot Schematics Acquired 3 | . . . . . . . . . 3 . . . . . . . . . . . . . Robots Built . | . . . . . . . . . . . . . . . . . . . . . . . Authchips . | . . . . . . . . . . . . . . . . . . . . . . . Time . | . . . . . . . . . . . . . . . . . . . . . . . Total Robot Build Rating . | . . . . . . . . . . . . . . . . . . . . . . . Part Schematics Acquired 16 | . . . . . . . . . 11 . . . . . . . . . . . 5 . Parts Built 4 | . . . . . . . . . . . . 1 . . . . 1 . . . 1 1 Authchips . | . . . . . . . . . . . . . . . . . . . . . . . Time 430 | . . . . . . . . . . . . 152 . . . . 152 . . . 76 50 Total Part Build Rating 20 | . . . . . . . . . . . . 5 . . . . 5 . . . 5 5 Parts Repaired 1 | . . . . . . . . . . . . . . . . . . . . . . 1 Time 33 | . . . . . . . . . . . . . . . . . . . . . . 33 Parts Recycled . | . . . . . . . . . . . . . . . . . . . . . . . Recycled Matter . | . . . . . . . . . . . . . . . . . . . . . . . Retrieved Matter . | . . . . . . . . . . . . . . . . . . . . . . . Retrieved Components 6 | . 3 . . . . . . . . . . . . . . . . 3 . . . . Parts Scanalyzed . | . . . . . . . . . . . . . . . . . . . . . . . Part Schematics Acquired . | . . . . . . . . . . . . . . . . . . . . . . . Parts Damaged . | . . . . . . . . . . . . . . . . . . . . . . . Bothacking | -11 -10 -10 -10 -9 -8 -7 -7 -7 -7 -6 -6 -5 -5 -5 -5 -5 -4 -4 -4 -3 -2 -1 ------------ Run | Scr Mat Min Exi Min Mat Fac Low Low Dat Pro Fac Fac Ext Cet Arc Hub Fac Arm Lab Res Res Acc Used RIF Installer . | . . . . . . . . . . . . . . . . . . . . . . . Robots Hacked . | . . . . . . . . . . . . . . . . . . . . . . . Non-combat . | . . . . . . . . . . . . . . . . . . . . . . . Combat . | . . . . . . . . . . . . . . . . . . . . . . . Robot Hacks Applied . | . . . . . . . . . . . . . . . . . . . . . . . Relay Couplers Released . | . . . . . . . . . . . . . . . . . . . . . . . Fabnet Peak Effective % . | . . . . . . . . . . . . . . . . . . . . . . . Robots Rewired 19 | . . . . . . . . . . . . . 8 . . . . 11 . . . . Allies Hacked 2 | . . . . . . . . . . . . . 1 . . . . 1 . . . . Hacks Repelled . | . . . . . . . . . . . . . . . . . . . . . . . Allies | -11 -10 -10 -10 -9 -8 -7 -7 -7 -7 -6 -6 -5 -5 -5 -5 -5 -4 -4 -4 -3 -2 -1 -------- Run | Scr Mat Min Exi Min Mat Fac Low Low Dat Pro Fac Fac Ext Cet Arc Hub Fac Arm Lab Res Res Acc Total Allies 39 | . . . . 3 1 . . . . 1 . . 17 5 . . . 11 . . . 1 Largest Group 6 | . . . . 3 3 . . . . 1 1 . 6 6 4 3 . 6 . . . 1 Highest-Rated Group 623 | . . . . 40 40 . . . . 96 96 . 279 623 384 276 . 252 . . . 45 Highest-Rated Ally 159 | . . . . 16 16 . . . . 96 96 . 159 152 96 96 . 48 . . . 45 Total Orders . | . . . . . . . . . . . . . . . . . . . . . . . Ally Attacks 424 | . . . . . 7 . . . . 8 11 . 113 183 34 23 . 45 . . . . Total Damage 13424 | . . . . . 87 . . . . 366 283 . 2540 6285 1330 775 . 1758 . . . . Kills 90 | . . . . . . . . . . 3 3 . 26 41 4 4 . 9 . . . . Allies Corrupted 5 | . . . . . . . . . . . . . . . . . . 5 . . . . Allies Melted . | . . . . . . . . . . . . . . . . . . . . . . . Intel | -11 -10 -10 -10 -9 -8 -7 -7 -7 -7 -6 -6 -5 -5 -5 -5 -5 -4 -4 -4 -3 -2 -1 ------- Run | Scr Mat Min Exi Min Mat Fac Low Low Dat Pro Fac Fac Ext Cet Arc Hub Fac Arm Lab Res Res Acc Robot Analysis Total 2 | . . . . . . . . . . . 1 . . . . . . . . 1 . . Derelict Logs Recovered 3 | . . 1 . 1 . . . . . 1 . . . . . . . . . . . . Drone Launches . | . . . . . . . . . . . . . . . . . . . . . . . Drone Recoveries . | . . . . . . . . . . . . . . . . . . . . . . . Exploration | -11 -10 -10 -10 -9 -8 -7 -7 -7 -7 -6 -6 -5 -5 -5 -5 -5 -4 -4 -4 -3 -2 -1 ------------- Run | Scr Mat Min Exi Min Mat Fac Low Low Dat Pro Fac Fac Ext Cet Arc Hub Fac Arm Lab Res Res Acc Turns Passed 6109 | 19 82 104 106 85 164 335 119 88 26 229 187 236 1040 822 163 261 328 378 193 266 393 485 Spaces Moved 11173 | 30 157 207 209 143 300 609 214 231 81 261 465 381 1089 944 201 569 851 748 275 755 1081 1372 Core 1895 | 30 157 207 209 143 300 609 214 22 . . . . 1 . . . . . . . . 3 Treads . | . . . . . . . . . . . . . . . . . . . . . . . Legs . | . . . . . . . . . . . . . . . . . . . . . . . Wheels . | . . . . . . . . . . . . . . . . . . . . . . . Hover . | . . . . . . . . . . . . . . . . . . . . . . . Flight 9278 | . . . . . . . . 209 81 261 465 381 1088 944 201 569 851 748 275 755 1081 1369 Fastest Speed 20 | 50 50 50 50 50 50 50 50 32 32 32 32 34 23 28 25 26 24 28 28 28 29 20 Average Speed 35 | 50 50 50 50 50 50 50 50 33 32 32 33 34 45 35 36 26 27 29 28 30 29 27 Slowest Speed 200 | 50 50 50 50 50 50 50 50 50 32 32 34 34 109 37 108 26 32 32 28 31 31 200 Overloaded Moves . | . . . . . . . . . . . . . . . . . . . . . . . Propulsion Burnouts . | . . . . . . . . . . . . . . . . . . . . . . . Robots Hopped 78 | . . . . . . . . . . . . 3 10 . . 1 7 2 . 7 16 32 Cave-ins Triggered . | . . . . . . . . . . . . . . . . . . . . . . . Exploration Rate (%) 46 | 3 27 44 60 44 40 25 56 53 73 49 15 8 90 93 89 37 16 60 88 24 31 39 Regions Visited 22 Branch Regions 13 Pre-discovered Areas 4 | . . . 1 . 1 . . . 1 . 1 . . . . . . . . . . . Known Exits Taken 18 | . . . . 1 1 1 1 1 1 1 1 1 1 1 1 1 1 1 1 1 1 . Unknown Exits Taken 4 | 1 1 1 1 . . . . . . . . . . . . . . . . . . . Scrap Searched 11 | . . 1 . 2 . . 2 5 . 1 . . . . . . . . . . . . Spaces Dug 58 | . . . . . 1 . . . . . 3 1 . . . 4 4 8 . 5 14 18 Terrain Destroyed 298 | . . . . . 1 21 17 . . 20 3 1 12 . . 174 4 8 . 5 14 18 Melee 58 | . . . . . 1 . . . . . 3 1 . . . 4 4 8 . 5 14 18 Projectile 13 | . . . . . . . . . . . . . 12 . . 1 . . . . . . AOE 227 | . . . . . . 21 17 . . 20 . . . . . 169 . . . . . . Terrain Rammed . | . . . . . . . . . . . . . . . . . . . . . . . Walls Destroyed . | . . . . . . . . . . . . . . . . . . . . . . . Machines Disabled . | . . . . . . . . . . . . . . . . . . . . . . . Actions | -11 -10 -10 -10 -9 -8 -7 -7 -7 -7 -6 -6 -5 -5 -5 -5 -5 -4 -4 -4 -3 -2 -1 --------- Run | Scr Mat Min Exi Min Mat Fac Low Low Dat Pro Fac Fac Ext Cet Arc Hub Fac Arm Lab Res Res Acc Total 12947 | 32 158 206 209 155 308 630 218 236 80 403 486 481 1550 1398 287 662 911 876 389 767 1098 1407 Wait 1321 | . . . . 12 4 3 . . . 140 . 102 346 419 80 76 13 5 81 . . 40 Move 11004 | 29 156 206 208 142 299 608 213 230 80 260 464 374 1068 943 200 566 838 744 274 740 1052 1310 Hop 68 | . . . . . . . . . . . . 3 10 . . 1 5 1 . 7 12 29 Pick Up 33 | 1 . . . . . 4 . . . . 2 . . 3 . 2 5 2 11 1 1 1 Fast Attach 68 | 2 2 . 1 1 3 6 . . . 1 5 1 8 7 3 1 6 6 2 5 6 2 Attach 15 | . . . . . . 1 . . . . . . . 2 . . 2 2 2 1 2 3 Detach 9 | . . . . . . 1 . . . . . . 2 1 . . 1 1 1 . . 2 Swap 18 | . . . . . . 2 . 1 . . 3 . 1 3 1 2 1 1 2 1 . . Drop 52 | . . . . . . . . 2 . . 6 . 6 3 2 2 6 4 13 3 5 . Fire 35 | . . . . . . 5 3 . . 2 . . 24 . . 1 . . . . . . Melee 138 | . . . . . 2 . 2 3 . . 6 1 12 17 1 11 16 15 3 9 20 20 Ram 1 | . . . . . . . . . . . . . 1 . . . . . . . . . Kick . | . . . . . . . . . . . . . . . . . . . . . . . Crush . | . . . . . . . . . . . . . . . . . . . . . . . Escape Stasis 66 | . . . . . . . . . . . . . 23 . . . 18 25 . . . . Rewire 119 | . . . . . . . . . . . . . 49 . . . . 70 . . . . Trap . | . . . . . . . . . . . . . . . . . . . . . . . Miscellaneous . | . . . . . . . . . . . . . . . . . . . . . . . Route ------- -11/Scrapyard -10/Materials -10/Mines -10/Exiles -9/Mines (discovered 2 exits: *Mat x2) -8/Materials (discovered 3 exits: *Fac x3) -7/Factory (discovered 4 exits: Sto x2 / *Low x2) -7/Lower Caves (discovered 2 exits: *Low / *Zio) -7/Lower Caves (discovered 2 exits: *Fac / *Dat) -7/Data Miner -6/Proximity Caves -6/Factory (discovered 4 exits: *Fac x4) -5/Factory (discovered 2 exits: *Upp / *Ext) -5/Extension (discovered 2 exits: *Fac / *Cet) -5/Cetus (discovered 3 exits: *Fac x2 / *Arc) -5/Archives (discovered 3 exits: *Fac / *Hub x2) -5/Hub_04(d) (discovered 2 exits: *Fac x2) -4/Factory (discovered 4 exits: *Res / Upp x2 / *Arm) -4/Armory -4/Lab -3/Research (discovered 3 exits: *Res x3) -2/Research (discovered 3 exits: *Acc x3) -1/Access To Fleet Rendezvous History --------- Turn | Location | Event 13 | -11/Scrapyard | Discovered new exit (range 15) 20 | -11/Scrapyard | Entered Materials 84 | -10/Materials | Discovered new exit (range 13) 102 | -10/Materials | Entered Mines 195 | -10/Mines | Assembled infested the area 196 | -10/Mines | Met a Derelict bent on vengeance 198 | -10/Mines | Learned 4 Materials zone layouts 204 | -10/Mines | Deemed a non-threat by the Exiles lab entrance 204 | -10/Mines | Discovered new exit (range 5) 206 | -10/Mines | Entered Exiles 219 | -10/Exiles | Met 8R-AWN 227 | -10/Exiles | Met EX-HEX 243 | -10/Exiles | Met EX-BIN 248 | -10/Exiles | Aligned with FarCom system 249 | -10/Exiles | Given EX-Vault access code 261 | -10/Exiles | Opened EX-Vault 263 | -10/Exiles | Found Trap Reconfigurator 275 | -10/Exiles | Warned to stay clear of 0b10 Research branches 289 | -10/Exiles | Met EX-DEC 292 | -10/Exiles | Learned location of Zion (-6) 303 | -10/Exiles | Build established: Mutant 306 | -10/Exiles | Discovered new exit (range 14) 312 | -10/Exiles | Left Exiles lab with Trap Reconfigurator 312 | -10/Exiles | Entered Mines 334 | -9/Mines | Identified exit to Materials 369 | -9/Mines | Discovered exit to Materials (range 7) 374 | -9/Mines | Assisted by bots powering up and referring to "LRC-V3" 397 | -9/Mines | Entered Materials 397 | -8/Materials | Accompanied by 3 allies 397 | -8/Materials | Evolved 4 slots: Propulsion x2, Utility x2 398 | -8/Materials | Identified exit to Factory 437 | -8/Materials | Garrison activated, responded to threat 561 | -8/Materials | Entered Factory 561 | -7/Factory | Evolved 2 slots: Propulsion x1, Utility x1 672 | -7/Factory | Identified exit to Storage 672 | -7/Factory | Identified exit to Lower Caves 896 | -7/Factory | Entered Lower Caves 919 | -7/Lower Caves | A Derelict revealed a hidden shortcut to a safe place 923 | -7/Lower Caves | Identified exit to Zion 949 | -7/Lower Caves | Spotted B-75 Beast 1003 | -7/Lower Caves | Discovered new exit (range 7) 1006 | -7/Lower Caves | Identified exit to Lower Caves 1015 | -7/Lower Caves | Entered another Lower Caves area 1019 | -7/Lower Caves | Arm. Treads stolen by Master Thief 1025 | -7/Lower Caves | Discovered new exit (range 8) 1085 | -7/Lower Caves | Discovered new exit (range 11) 1103 | -7/Lower Caves | Identified exit to Data Miner 1103 | -7/Lower Caves | Entered Data Miner 1103 | -7/Data Miner | Discovered new exit (range 6) 1108 | -7/Data Miner | Met Data Miner 1117 | -7/Data Miner | Learned location of Section 7 (-3) 1117 | -7/Data Miner | Acquired the access code to Warlord's prototype stash 1121 | -7/Data Miner | Received God Mode back door access code from Data Miner 1129 | -7/Data Miner | Identified exit to Proximity Caves 1129 | -7/Data Miner | Entered Proximity Caves 1142 | -6/Proximity Caves | Escorted by Enhanced Grunt 1146 | -6/Proximity Caves | Attracted the attention of an 0b10 checkpoint 1299 | -6/Proximity Caves | Discovered new exit (range 16) 1306 | -6/Proximity Caves | Learned Factory stockpile data 1313 | -6/Proximity Caves | Identified exit to Factory 1327 | -6/Proximity Caves | Build established: Sprinter 1358 | -6/Proximity Caves | Entered Factory 1358 | -6/Factory | Accompanied by 1 ally 1358 | -6/Factory | Evolved 2 slots: Propulsion x1, Utility x1 1384 | -6/Factory | Identified exit to Factory 1487 | -6/Factory | Incoming investigation squad redirected 1545 | -6/Factory | Entered another Factory area 1545 | -5/Factory | Evolved 2 slots: Power x1, Utility x1 1594 | -5/Factory | Incoming investigation squad redirected 1620 | -5/Factory | Discovered new exit (range 9) 1622 | -5/Factory | Discovered new exit (range 19) 1623 | -5/Factory | Identified exit to Upper Caves 1689 | -5/Factory | Build established: Hacker-Mutant 1700 | -5/Factory | Fabricated Lgt. Regenerative Plating? 1781 | -5/Factory | Identified exit to Extension 1781 | -5/Factory | Entered Extension 1811 | -5/Extension | Rescued a captive Derelict 1815 | -5/Extension | Rescued a captive Derelict 1840 | -5/Extension | Rescued a captive Derelict 1977 | -5/Extension | Incoming investigation squad redirected 2392 | -5/Extension | Spotted B-75 Beast 2433 | -5/Extension | Allies destroyed B-75 Beast 2460 | -5/Extension | Lost 3 parts (3n) 2498 | -5/Extension | Spotted B-75 Beast 2511 | -5/Extension | Rescued a captive Derelict 2512 | -5/Extension | Rescued a captive Derelict 2543 | -5/Extension | Rescued a captive Derelict 2543 | -5/Extension | Rescued a captive Derelict 2599 | -5/Extension | Rescued A7 2717 | -5/Extension | Rescued a captive Derelict 2726 | -5/Extension | Discovered new exit (range 10) 2726 | -5/Extension | Discovered new exit (range 6) 2781 | -5/Extension | Disrupted transfer network 2810 | -5/Extension | Identified exit to Cetus 2821 | -5/Extension | Entered Cetus 2821 | -5/Cetus | Accompanied by 6 allies (A7) 2826 | -5/Cetus | Acquired a Cetus Manufacturing Module code from A7 2845 | -5/Cetus | Spotted Cetus Guard 2845 | -5/Cetus | Spotted Cetus Guard 2855 | -5/Cetus | Spotted Cetus Guard 2855 | -5/Cetus | Spotted Cetus Guard 2860 | -5/Cetus | Allies destroyed Cetus Guard 2869 | -5/Cetus | Allies destroyed Cetus Guard 2883 | -5/Cetus | Allies destroyed Cetus Guard 2898 | -5/Cetus | Allies destroyed Cetus Guard 2927 | -5/Cetus | Started Cetus Manufacturing Module 2952 | -5/Cetus | Manufactured an Enhanced Grunt 2957 | -5/Cetus | Incoming investigation squad redirected 2977 | -5/Cetus | Manufactured an Enhanced Grunt 2995 | -5/Cetus | Discovered new exit (range 15) 3002 | -5/Cetus | Manufactured an Enhanced Grunt 3027 | -5/Cetus | Manufactured an Enhanced Grunt 3052 | -5/Cetus | Manufactured an Enhanced Grunt 3058 | -5/Cetus | Spotted Cetus Guard 3058 | -5/Cetus | Spotted Cetus Guard 3076 | -5/Cetus | Spotted Cetus Guard 3076 | -5/Cetus | Spotted Cetus Guard 3079 | -5/Cetus | Allies destroyed Cetus Guard 3080 | -5/Cetus | Allies destroyed Cetus Guard 3083 | -5/Cetus | Allies destroyed Cetus Guard 3093 | -5/Cetus | Allies destroyed Cetus Guard 3113 | -5/Cetus | Discovered new exit (range 15) 3115 | -5/Cetus | Met Revision 17 3150 | -5/Cetus | Discovered new exit (range 15) 3189 | -5/Cetus | Escorted A7 to Cetus Mainframe 3300 | -5/Cetus | Incoming investigation squad redirected 3325 | -5/Cetus | Build established: Commander-Mutant 3481 | -5/Cetus | Found a strange terminal 3548 | -5/Cetus | Cetus Manufacturing Module disabled 3592 | -5/Cetus | Destroyed A7 3593 | -5/Cetus | Extracted ID and sensor layout for unrecognized location from A7's data core 3611 | -5/Cetus | Identified exit to Archives 3643 | -5/Cetus | Entered Archives 3643 | -5/Archives | Accompanied by 4 allies 3723 | -5/Archives | Unable to access archive contents 3727 | -5/Archives | Unable to access archive contents 3728 | -5/Archives | Discovered new exit (range 16) 3730 | -5/Archives | Unable to access archive contents 3731 | -5/Archives | Discovered new exit (range 14) 3739 | -5/Archives | Discovered new exit (range 15) 3783 | -5/Archives | Identified exit to Hub_04(d) 3806 | -5/Archives | Entered Hub_04(d) 3806 | -5/Hub_04(d) | Accompanied by 3 allies 3863 | -5/Hub_04(d) | Discovered new exit (range 9) 3871 | -5/Hub_04(d) | Discovered new exit (range 8) 3951 | -5/Hub_04(d) | Identified exit to Factory 4009 | -5/Hub_04(d) | Network Hub disabled 4055 | -5/Hub_04(d) | Build established: Scavenger-Sprinter 4067 | -5/Hub_04(d) | Entered Factory 4067 | -4/Factory | Evolved 2 slots: Utility x2 4084 | -4/Factory | Discovered new exit (range 10) 4086 | -4/Factory | Identified exit to Research 4222 | -4/Factory | Fabricated Cld. Cesium-ion Thruster? 4277 | -4/Factory | Identified exit to Upper Caves 4277 | -4/Factory | Identified exit to Armory 4395 | -4/Factory | Entered Armory 4629 | -4/Armory | Found Enh. Force Lance 4686 | -4/Armory | P-70 Sage assimilated allied Swordsman 7f 4689 | -4/Armory | System corruption reached 10% 4709 | -4/Armory | Spotted B-86 Titan 4754 | -4/Armory | Incoming investigation squad redirected 4770 | -4/Armory | Discovered new exit (range 5) 4773 | -4/Armory | Identified exit to Lab 4773 | -4/Armory | Entered Lab 4780 | -4/Lab | Discovered exit to Research (range 9) 4784 | -4/Lab | Hidden lab's door opened automatically 4784 | -4/Lab | Sensor layout match revealed 4785 | -4/Lab | Gained access to the hidden lab's interior 4806 | -4/Lab | Found Alien Artifact 4811 | -4/Lab | Found Alien Artifact 4823 | -4/Lab | Found Prototype Hackware 4854 | -4/Lab | Found Alien Artifact 4869 | -4/Lab | Found Prototype Protection 4891 | -4/Lab | Found Alien Artifact 4902 | -4/Lab | Identified Hvy. Regenerative Plating 4912 | -4/Lab | Identified Deep Network Scanner 4966 | -4/Lab | Entered Research 4966 | -3/Research | Evolved 2 slots: Propulsion x1, Utility x1 4984 | -3/Research | Identified exit to Research 5036 | -3/Research | Found Prototype Slashing Weapon 5036 | -3/Research | Identified Centrium Greatsword 5189 | -3/Research | Build established: Hacker-Sprinter 5232 | -3/Research | Entered another Research area 5232 | -2/Research | Evolved 2 slots: Propulsion x1, Utility x1 5259 | -2/Research | Incoming investigation squad redirected 5314 | -2/Research | Fabricated Cld. Cesium-ion Thruster? 5333 | -2/Research | Identified exit to Access 5451 | -2/Research | Spotted B-90 Cyclops 5551 | -2/Research | Identified Transdimensional Reconstructor 5551 | -2/Research | Identified Core Expander 5551 | -2/Research | Identified Integrated Mediator 5551 | -2/Research | Identified Core Reset Matrix 5553 | -2/Research | Installed Core Expander, added new Utility slot 5554 | -2/Research | Installed Integrated Mediator, increased core attachment efficiency. 5561 | -2/Research | Spotted B-90 Cyclops 5576 | -2/Research | Spotted B-90 Cyclops 5625 | -2/Research | Entered Access 5625 | -1/Access | Evolved 2 slots: Power x1, Utility x1 5722 | -1/Access | Repaired Centrium Greatsword 5731 | -1/Access | Spotted B-99 Colossus 5787 | -1/Access | Spotted B-99 Colossus 5859 | -1/Access | Fabricated Exp. Propulsion Shielding? 5903 | -1/Access | Identified exit to Command 5904 | -1/Access | Search patrols dispatched 5999 | -1/Access | Spotted B-99 Colossus 6031 | -1/Access | Identified exit to Surface 6067 | -1/Access | Lost 3 parts (1p2u) 6109 | -1/Access | Used Core Reset Matrix 6110 | *** | Heading to fleet! Last Messages --------------- 06040_ Slug penetrates Wall. 06040_ Penetrated by Slug. 06043_ Slug penetrates Wall. 06055_ K-01 Serf cleans the Longscan Aggregator. 06071_ Penetrated by Slug. 06072_ System corrupted: Heat flow error (+231). 06075_ Penetrated by Slug. 06075_ Slug penetrates Wall. 06078_ Adv. Gravity Neutralizer destroyed. 06079_ Penetrated by Slug. 06094_ System corrupted: Energy discharge (-37). 06099_ C-30 ARC bursts open, deploying its payload. 06099_ H-88 Terminator unfolds itself. 06099_ Slug penetrates A-15 Conveyor. 06107_ Connecting with Terminal... >>Open(Door) Sealed Barrier opened. 06108_ The Access Shell folds into the floor. 06109_ Wiping memory... 06110_ CORE RESET Map ----- +----------------------------------------------------+ | ?????????????????????????????????????????????????? | | ?????????????????????????????????????????????????? | | ?????????????????????????????????????????????????? | | ?????????????????????????????????????????????????? | | ?????????????????????????????????????????????????? | | ?????????????????????????????????????????????????? | | ?????????????????????????????????????????????????? | | ?????????????????????????????????????????????????? | | ?????????????????????????????????????????????????? | | ?????????????????????????????????????????????????? | | ?????????????????????????????????????????????????? | | ???????????????????????h??h??????????????????????? | | ??????????????s??????????????????????????????????? | | ????????????s????????????????????????????????????? | | ?????????????????????????????????????????????????? | | ????????????s????????????????????????????????????? | | ????????????s????????????????????????????????????? | | ?????????????????????????????????????????????????? | | ???????????????????##????????????????????????????? | | ?????????????????### ##########??????????????????? | | ??????????????""T""" "??????????????????? | | ??????????# """ """ "????BB????????????? | | ??????????# "????BB????????????? | | ??????????# "??????????????????? | | ??????????# "" "??????????????????? | | ??????????# @" "??????????????????? | | ??????????# "??????????????????? | | ??????????# "????BB????????????? | | ??????????# "????BB????????????? | | ??????????? "??????????????????? | | ??????????? ####### ##########??????????????????? | | ???????????????????##????????????????????????????? | | ?????????????????????????????????????????????????? | | ?????????????????????????????????????????????????? | | ?????????????????????????????????????????????????? | | ?????????????????????????????????????????????????? | | ?????????????????????????????????????????????????? | | ?????????????????????????????????????????????????? | | ?????????????????????????????????????????????????? | | ?????????????????????????????????????????????????? | | ?????????????????????????????????????????????????? | | ?????????????????????????????????????????????????? | | ?????????????????????????????????????????????????? | | ?????????????????????????????????????????????????? | | ?????????????????????????????????????????????????? | | ?????????????????????????????????????????????????? | | ?????????????????????????????????????????????????? | | ?????????????????????????????????????????????????? | | ?????????????????????????????????????????????????? | | ?????????????????????????????????????????????????? | +----------------------------------------------------+ Best States ------------- Heat Dissipation 52 Energy Generation 39 Energy Capacity 380 Matter Stores 300 Matter Capacity 300 Sight Range 20 Terrain Scan Density 10 Additional Mass Support 16 Armor Coverage 825 Propulsion Shielding 90 Utility Shielding 66 Evasion (%) 65 Offensive Hacking 53 Defensive Hacking 10 Item Schematics ----------------- None Robot Schematics ------------------ None Fabricated ------------ Lgt. Regenerative Plating | x1 | -5/Factory Cld. Cesium-ion Thruster | x1 | -4/Factory Cld. Cesium-ion Thruster | x1 | -2/Research Exp. Propulsion Shielding | x1 | -1/Access Alien Tech Used ----------------- Core Expander Integrated Mediator Core Reset Matrix Achievements -------------- None Challenges ------------ None Game ------ Seed HeavyBladeStick Manual? 0 Play Time 02:23:43 Cumulative 642.1 hours Start 2022.03.24 @ 10:32:55 End 2022.03.24 @ 13:06:23 Sessions 1 Manual Loads 0 Difficulty Rogue Special Mode None Game No. 486 Rogue 486 Adventurer 0 Explorer 0 Win Type 2 Total 165 Types 91/9/48/6/3/2/4/1/1 Lore% 95 Gallery% 94 Achievement% 84 Wizard Run 0 Options --------- ASCII 1 Keyboard 0 Movement Vi Keybinds 0 Fullscreen 1 Font 16/Smallcaps Map View 184x79 Tactical HUD 1 Map Filters NONE Filters NONE Steam 1 RUN: f23c07e3-274c-4831-93b6-db359b59ca8e